Cogmind - Beta 16 @@@ ROGUE MODE // 2025.11.29 @ 09:12:31 Player: Gatamar Result: Destroyed by Y-64 Sentinel with KE Penetrator Performance ------------- Evolutions (4) 2000 Regions Visited (6) 1200 Robots Destroyed (28) 140 Value Destroyed (1354) 1354 Prototype IDs (23) 460 Alien Tech Used (0) 0 Bonus (800) 800 TOTAL SCORE: 5954 Bonus ------- Registered with UFD 300 Met Optimus in HQ 500 Cogmind --------- Core Integrity 0/850 Matter 233/300 Energy 170/170 System Corruption 16% Temperature Warm (182) Movement Walking (260) Ox2 Location -6/Lower Caves Parts ------- > --- POWER (2) -------- Makeshift Power Source > --- PROPULSION (4) --- Flexi-carbon Leg > --- UTILITY (7) ------ High-capacity Storage Unit Experimental Signal Interpreter > --- WEAPON (2) ------- (None) > --- INVENTORY (20) --- Light Fission Core Medium Treads Overtuned Titanium Leg Heat Sink Improved Terrain Scan Processor Hardlight Generator Drone Bay (2/2) Overtuned Pulse Rifle Ion Cannon Gauss Cannon Peak State ------------ > --- POWER ------------ Light Deuterium Engine Light Fission Core > --- PROPULSION ------- Carbon-fiber Leg VSS Leg Flexi-carbon Leg Armored Leg > --- UTILITY ---------- High-capacity Storage Unit Experimental Sensor Array Experimental Signal Interpreter Advanced Terrain Scan Processor Hacking Suite Makeshift Hacking Suite A0-MCA's Component Scanner > --- WEAPON ----------- Heavy Plasma Cannon Gauss Cannon > --- INVENTORY -------- Improved Deuterium Engine Fission Core Medium Treads Overtuned Titanium Leg Improved Titanium Leg Flexi-carbon Leg Flexi-carbon Leg Armored Leg Heat Sink Improved Heat Sink Improved Terrain Scan Processor Remote Shield Drone Bay High-powered Shock Rifle Overtuned Pulse Rifle Assault Cannon Grenade Launcher Mining Claw [Rating: 77] Favorites ----------- Power Ion Engine Engine Ion Engine Power Core Light Fission Core Propulsion Light Treads Treads Light Treads Leg VSS Leg Utility High-capacity Storage Unit Device Experimental Sensor Array Storage High-capacity Storage Unit Processor A0-MCA's Component Scanner Hackware Hacking Suite Protection Hardened Light Armor Plating Weapon Heavy Plasma Cannon Energy Gun EM Pulse Gun Energy Cannon Heavy Plasma Cannon Ballistic Gun Gauss Rifle Ballistic Cannon Gauss Cannon Launcher Grenade Launcher Slashing Weapon Mining Claw Build | -11 -10 -10 -10 -8 -6 -6 ------- Run | Yrd Mat Min Sub Scr Fac Low Slots Evolved 8 | . . . . . 8 . Power 1 | . . . . . 1 . Propulsion 2 | . . . . . 2 . Utility 5 | . . . . . 5 . Weapon . | . . . . . . . Parts Attached 55 | 7 3 2 1 10 21 11 Power 9 | 1 . . . 2 4 2 Engine 6 | 1 . . . 1 2 2 Core 3 | . . . . 1 2 . Reactor . | . . . . . . . Propulsion 16 | 2 . . 1 5 6 2 Treads 6 | 2 . . 1 3 . . Leg 10 | . . . . 2 6 2 Wheel . | . . . . . . . Hover . | . . . . . . . Flight . | . . . . . . . Utility 15 | 1 2 2 . 1 8 1 Device 6 | . 1 2 . . 3 . Storage 2 | 1 1 . . . . . Processor 4 | . . . . 1 3 . Hackware 2 | . . . . . 2 . Protection 1 | . . . . . . 1 Artifact . | . . . . . . . Weapon 15 | 3 1 . . 2 3 6 Energy Gun 7 | 3 1 . . 1 . 2 Energy Cannon 2 | . . . . . 1 1 Ballistic Gun 1 | . . . . . . 1 Ballistic Cannon 3 | . . . . . 2 1 Launcher 1 | . . . . 1 . . Special Weapon . | . . . . . . . Impact Weapon . | . . . . . . . Slashing Weapon 1 | . . . . . . 1 Piercing Weapon . | . . . . . . . Special Melee Weapon . | . . . . . . . Unidentified Prototypes 1 | . . 1 . . . . Parts Lost 33 | . 1 1 . 1 8 22 Power 6 | . . . . 1 2 3 Propulsion 7 | . . . . . 3 4 Utility 10 | . . 1 . . 3 6 Weapon 10 | . 1 . . . . 9 Highest Loss Streak 12 | . 1 1 . 1 3 12 To Critical Strikes . | . . . . . . . Average Backups 13 | 2 7 10 11 15 15 10 Power 1 | . 1 2 2 1 1 . Propulsion 3 | 1 2 3 3 3 3 1 Utility 5 | . 1 3 4 6 5 4 Weapon 4 | . 1 2 2 4 4 4 Tool/Special . | . . . . . . . Unused Backups 12 | . . 1 . 4 2 5 Power 3 | . . . . 2 . 1 Propulsion 3 | . . . . 2 1 . Utility 4 | . . . . . 1 3 Weapon 2 | . . 1 . . . 1 Tool/Special . | . . . . . . . Average Slot Usage (%) 83 | . 94 99 100 73 92 73 Engine 9 | . 14 14 14 9 6 5 Core 3 | . . . . 4 4 . Treads 17 | . 28 28 28 27 . . Leg 8 | . . . . . 24 14 Device 7 | . 8 13 14 7 8 . Storage 11 | . 14 14 14 14 6 6 Processor 10 | . . . . 6 18 24 Hackware 2 | . . . . . 7 5 Energy Gun 6 | . 27 28 28 1 . 4 Energy Cannon 1 | . . . . . 5 . Ballistic Cannon 1 | . . . . . 5 . Peak Build Rating 77 | 6 8 16 16 28 77 73 Average Rating 33 | 4 6 10 16 18 68 51 On Entrance 20 | . 6 8 16 16 27 73 Avg Prop Armor Cover (%) 6 | . . . . 10 4 6 Naked Turns . | . . . . . . . Heaviest Build 83 | 14 50 49 49 51 83 78 Greatest Support 76 | 40 40 40 40 48 76 76 Greatest Overweight (x) 16 | 1 1 1 1 16 2 13 Average Overweight (x) . | . . 1 1 . 1 1 Largest Inventory Capacity 20 | 8 20 20 20 20 20 20 Average Capacity 19 | 6 16 20 20 20 20 20 Most Carried 20 | 4 10 12 11 20 18 17 Average Carried 14 | 2 7 10 11 16 15 10 Final Capacity 20 | 8 20 20 20 20 20 20 Final Carried 18 | 4 10 11 11 18 17 10 Scrap Suit Usage (%) 5 | . . . . . 19 . Class Distribution -------------------- 78% | Mutant 20% | Scavenger-Mutant Dominant Class ---------------- Mutant | -10/Materials Mutant | -10/Mines Mutant | -10/Subcaves Mutant | -8/Scraptown Scavenger-Mutant | -6/Factory Mutant | -6/Lower Caves Resources | -11 -10 -10 -10 -8 -6 -6 ----------- Run | Yrd Mat Min Sub Scr Fac Low Matter Collected 1386 | 181 100 19 . 265 417 404 Remotely 114 | . 100 14 . . . . Salvage Created 1221 | . 49 87 . 536 324 225 Parts 50 | . 4 4 . 23 15 4 Haulers Intercepted . | . . . . . . . Recyclers Shooed 1 | . . . . . 1 . Parts Field Recycled . | . . . . . . . Retrieved Matter . | . . . . . . . Parts Self-Destructed 3 | . . . . . . 3 Prevented 1 | . . . . . . 1 Parts Restored . | . . . . . . . Kills | -11 -10 -10 -10 -8 -6 -6 ------- Run | Yrd Mat Min Sub Scr Fac Low Combat Hostiles Destroyed 26 | . 1 2 . 11 8 4 Melee 1 | . . . . . . 1 Guns 7 | . 1 2 . 1 . 3 Cannons 8 | . . . . . 8 . AOE 10 | . . . . 10 . . Classes Destroyed 9 | . 1 . . 4 4 . Watcher 2 | . . . . . 2 . Grunt 10 | . 1 2 . . 3 4 Sentry 1 | . . . . . 1 . Hunter 1 | . . . . . 1 . Programmer 3 | . . . . . 3 . Federalist 1 | . . . . 1 . . Ranger 1 | . . . . 1 . . Guru 1 | . . . . 1 . . Scrapper 8 | . . . . 8 . . Best Kill Streak 8 | . 1 2 . 8 2 1 Combat Bots Only 8 | . 1 2 . 8 2 1 Max Kills in Single Turn 3 | . 1 1 . 3 1 1 Gunslinging . | . . . . . . . Exploded 3 | . . . . 3 . . Melee 1 | . . . . . . 1 Uniques/NPCs Destroyed . | . . . . . . . Combat | -11 -10 -10 -10 -8 -6 -6 -------- Run | Yrd Mat Min Sub Scr Fac Low Hostile Shots Fired 394 | . 10 19 . 38 141 186 Missed 102 | . 5 7 . 9 41 40 Hits 292 | . 5 12 . 29 100 146 Melee 10 | . . . . . . 10 Projectile 282 | . 5 12 . 29 100 136 AOE 1 | . 1 . . . . . Critical Strikes 16 | . 1 . . 3 1 11 Part Disruptions 3 | . . . . 1 2 . Damage Taken 5105 | . 174 149 . 514 1292 2976 Core 984 | . . 20 . 90 188 686 Absorbed by Shields 170 | . . . . . 170 . Core Remaining (%) 78 | 100 . . . 56 . . Volleys Fired 150 | . 7 11 . 20 77 35 Largest 2 | . 2 2 . 2 2 2 Hottest 135 | . 90 80 . 110 130 135 Shots Fired 206 | . 11 22 . 20 111 42 Gun 63 | . 11 22 . 5 . 25 Cannon 127 | . . . . . 111 16 Launcher 16 | . . . . 15 . 1 Special . | . . . . . . . Kinetic 91 | . . . . . 67 24 Thermal 70 | . 4 11 . 5 44 6 Explosive 16 | . . . . 15 . 1 Electromagnetic 29 | . 7 11 . . . 11 Robot Hit Streak 11 | . 3 8 . 11 6 10 Robot Miss Streak 4 | . 2 4 . 1 4 2 Penetration Max . | . . . . . . . Secondary Targets . | . . . . . . . Shots Hit Robots 130 | . 6 15 . 12 58 39 Core Hits 59 | . 3 5 . 20 16 15 Critical Kills . | . . . . . . . Critical Parts Destroyed . | . . . . . . . Critical Strikes 8 | . 1 1 . . 5 1 Burn 2 | . 1 . . . . 1 Blast 5 | . . . . . 5 . Corrupt 1 | . . 1 . . . . Melee Attacks 8 | . . . . . . 8 Impact . | . . . . . . . Slashing 8 | . . . . . . 8 Piercing . | . . . . . . . Sneak Attacks . | . . . . . . . Combat Hostiles . | . . . . . . . Follow-up Attacks . | . . . . . . . Damage Inflicted 3838 | . 78 177 . 1005 1609 969 Guns 743 | . 78 176 . 83 . 406 Cannons 1971 | . . . . . 1594 377 Explosions 922 | . . . . 922 . . Melee 138 | . . . . . . 138 Ramming 64 | . . 1 . . 15 48 Kinetic 1332 | . . . . . 877 455 Thermal 1043 | . 37 86 . 83 717 120 Explosive 922 | . . . . 922 . . Electromagnetic 339 | . 41 90 . . . 208 Impact . | . . . . . . . Slashing 138 | . . . . . . 138 Piercing . | . . . . . . . Highest Corruption 16 | . . . . . 5 16 Average Corruption 5 | . . . . . 4 6 Corruption Purged . | . . . . . . . Corruption Blocked . | . . . . . . . Effects 32 | . . . . . 18 14 Message Errors 10 | . . . . . 6 4 Matter Fused 6 | . . . . . 3 3 Heat Flow Errors 3 | . . . . . 1 2 Energy Discharges 2 | . . . . . 1 1 Parts Rejected 1 | . . . . . . 1 Data Loss (minor) 7 | . . . . . 5 2 Misfires 2 | . . . . . 2 . Alerts 1 | . . . . . . 1 Overload Shots . | . . . . . . . Overflow Damage 68 | . . . . 19 44 5 Projectiles 49 | . . . . . 44 5 Explosions 19 | . . . . 19 . . Melee . | . . . . . . . Knockbacks 7 | . . . . . 5 2 Impact 1 | . . . . . . 1 Kinetic 6 | . . . . . 5 1 Secondary . | . . . . . . . Self-Inflicted Damage . | . . . . . . . Shots . | . . . . . . . Rammed 1 | . . 1 . . . . Targets Rammed 16 | . . 1 . . 2 13 Kicked 15 | . . . . . 2 13 Crushed . | . . . . . . . Highest Temperature 547 | . 105 243 . 168 496 547 Average Temperature 146 | . 53 113 . 71 185 140 Received Heat Transfer 1972 | . 60 90 . 333 276 1213 Effects 31 | . . . . . 20 11 Shutdowns 8 | . . . . . 5 3 Energy Bleed 4 | . . . . . 2 2 Interference 9 | . . . . . 6 3 Matter Decay 5 | . . . . . 3 2 Short Circuit 2 | . . . . . 1 1 Damage (minor) 3 | . . . . . 3 . Siege Activations . | . . . . . . . Martial Activations . | . . . . . . . Shielding Activations . | . . . . . . . Robots Disrupted . | . . . . . . . Combat Hostiles . | . . . . . . . Robots Corrupted . | . . . . . . . Combat Hostiles . | . . . . . . . Parts Fried . | . . . . . . . Impact Corruptions . | . . . . . . . Robots Melted . | . . . . . . . Combat Hostiles . | . . . . . . . Parts Melted 3 | . . . . 3 . . Heat Transferred 1983 | . 185 200 . 148 1100 350 Parts Sabotaged . | . . . . . . . Parts Stolen . | . . . . . . . Parts Stripped . | . . . . . . . Power Chain Reactions . | . . . . . . . Alert | -11 -10 -10 -10 -8 -6 -6 ------- Run | Yrd Mat Min Sub Scr Fac Low Maximum Alert Level . | . . . . . . . Low Security (%) 100 | 100 100 100 . . 100 . Level 1 . | . . . . . . . Level 2 . | . . . . . . . Level 3 . | . . . . . . . Level 4 . | . . . . . . . Level 5 . | . . . . . . . High Security . | . . . . . . . Max Security . | . . . . . . . Peak Influence 77 | . 20 30 . . 77 . Initial . | . . . . . . . Average 9 | . 1 2 . . 13 . Influence Increases 526 | . 55 50 . . 326 95 Destroy 0b10 Robot/C 300 | . 20 40 . . 160 80 Destroy 0b10 Robot/NC 10 | . . . . . 10 . Destroy Leader 74 | . . 10 . . 64 . Successful Hack 33 | . 5 . . . 28 . Disable Machine 45 | . 15 . . . 30 . Destroy Structure 34 | . . . . . 34 . Partial Spotted 15 | . 15 . . . . . Lose Combat Pursuer 15 | . . . . . . 15 Influence Decreases 526 | . 55 50 . . 310 111 Entered New Map 7 | . . . . . . 7 Time Decay 413 | . 55 40 . . 253 65 Lost Part 106 | . . 10 . . 57 39 Squads Dispatched 6 | . . . . . 6 . Investigation 2 | . . . . . 2 . Extermination 4 | . . . . . 4 . Reinforcement . | . . . . . . . Assault . | . . . . . . . Garrison . | . . . . . . . Intercept . | . . . . . . . Searches Triggered . | . . . . . . . Construction Impeded . | . . . . . . . Haulers Reinforced . | . . . . . . . Active Scanning Responses . | . . . . . . . Cargo Convoy Interrupts . | . . . . . . . Stealth | -11 -10 -10 -10 -8 -6 -6 --------- Run | Yrd Mat Min Sub Scr Fac Low Distress Signals 1 | . 1 . . . . . Communications Jammed . | . . . . . . . Distress Signals . | . . . . . . . Times Spotted 51 | . 7 2 . 19 12 11 Peak Tracking Total 7 | . 3 2 . 4 2 7 Tactical Retreats 1 | . . . . . . 1 Traps | -11 -10 -10 -10 -8 -6 -6 ------- Run | Yrd Mat Min Sub Scr Fac Low Traps Triggered . | . . . . . . . Indirectly . | . . . . . . . Trap Hack Attempts . | . . . . . . . Triggered . | . . . . . . . Disarmed . | . . . . . . . Reprogrammed . | . . . . . . . Reused . | . . . . . . . Traps Extracted . | . . . . . . . Installed . | . . . . . . . Triggered . | . . . . . . . Machines | -11 -10 -10 -10 -8 -6 -6 ---------- Run | Yrd Mat Min Sub Scr Fac Low Machines Disabled 4 | . 1 . . 1 2 . Max in Single Turn 1 | . 1 . . 1 1 . Machines Repaired . | . . . . . . . Machines Dismantled . | . . . . . . . Machines Sabotaged . | . . . . . . . Overloaded Fab Kills . | . . . . . . . Hacking | -11 -10 -10 -10 -8 -6 -6 --------- Run | Yrd Mat Min Sub Scr Fac Low Machines Accessed 13 | . 2 . . 7 4 . Terminals 5 | . 2 . . . 3 . Fabricators . | . . . . . . . Repair Stations . | . . . . . . . Recycling Units . | . . . . . . . Scanalyzers 1 | . . . . . 1 . Garrison Access . | . . . . . . . Total Hacks 72 | . 3 . . 49 20 . Successful 64 | . 3 . . 49 12 . Failed 8 | . . . . . 8 . Catastrophic . | . . . . . . . Database Lockouts . | . . . . . . . Manual . | . . . . . . . Terminals 17 | . 3 . . . 14 . Fabricators . | . . . . . . . Repair Stations . | . . . . . . . Recycling Units . | . . . . . . . Scanalyzers 6 | . . . . . 6 . Garrison Access . | . . . . . . . Terminal Hacks 62 | . 3 . . 49 10 . Record 50 | . . . . 48 2 . Open DSF 1 | . . . . . 1 . Emergency Access Points 2 | . . . . . 2 . Alert Level 2 | . . . . . 2 . Locate Traps 2 | . 1 . . . 1 . Dispatch Records 1 | . . . . . 1 . Patrol Status 1 | . 1 . . . . . Hauler Manifests 1 | . . . . . 1 . Zone Layout 1 | . 1 . . . . . Proto ID Catalog 1 | . . . . 1 . . Fabricator Hacks . | . . . . . . . Repair Station Hacks . | . . . . . . . Recycling Unit Hacks . | . . . . . . . Scanalyzer 2 | . . . . . 2 . Insert Component 1 | . . . . . 1 . Retrieve Study 1 | . . . . . 1 . Garrison Access Hacks . | . . . . . . . Unauthorized Hacks . | . . . . . . . Terminals . | . . . . . . . Fabricators . | . . . . . . . Repair Stations . | . . . . . . . Recycling Units . | . . . . . . . Scanalyzers . | . . . . . . . Garrison Access . | . . . . . . . Data Cores Recovered . | . . . . . . . Used . | . . . . . . . Hacking Detections 3 | . . . . . 3 . Full Trace Events 2 | . . . . . 2 . Feedback Events . | . . . . . . . Feedback Blocked . | . . . . . . . Robot Schematics Acquired . | . . . . . . . Robots Built . | . . . . . . . Authchips . | . . . . . . . Time . | . . . . . . . Total Robot Build Rating . | . . . . . . . Part Schematics Acquired . | . . . . . . . Parts Built . | . . . . . . . Authchips . | . . . . . . . Time . | . . . . . . . Total Part Build Rating . | . . . . . . . Part Studies Acquired 1 | . . . . . 1 . Parts Repaired . | . . . . . . . Time . | . . . . . . . Parts Recycled . | . . . . . . . Recycled Matter . | . . . . . . . Retrieved Matter . | . . . . . . . Retrieved Components . | . . . . . . . Parts Scanalyzed 1 | . . . . . 1 . Part Schematics Acquired . | . . . . . . . Parts Damaged . | . . . . . . . Bothacking | -11 -10 -10 -10 -8 -6 -6 ------------ Run | Yrd Mat Min Sub Scr Fac Low Used RIF Installer . | . . . . . . . Robots Hacked . | . . . . . . . Non-combat . | . . . . . . . Combat . | . . . . . . . Robot Hacks Applied . | . . . . . . . Relay Couplers Released . | . . . . . . . Fabnet Peak Effective % . | . . . . . . . Robots Rewired . | . . . . . . . Allies Hacked . | . . . . . . . Hacks Repelled . | . . . . . . . Allies | -11 -10 -10 -10 -8 -6 -6 -------- Run | Yrd Mat Min Sub Scr Fac Low Total Allies . | . . . . . . . Largest Group . | . . . . . . . Highest-Rated Group . | . . . . . . . Highest-Rated Ally . | . . . . . . . Total Orders . | . . . . . . . Ally Attacks . | . . . . . . . Total Damage . | . . . . . . . Kills . | . . . . . . . Allies Corrupted . | . . . . . . . Allies Melted 7 | . . . . 7 . . Intel | -11 -10 -10 -10 -8 -6 -6 ------- Run | Yrd Mat Min Sub Scr Fac Low Active Infowar (turns) 3180 | . . 90 60 1851 1179 . Sensors 3180 | . . 90 60 1851 1179 . Robot Analysis Total . | . . . . . . . Derelict Logs Recovered 3 | . . 1 . . . 2 Drone Launches . | . . . . . . . Drone Recoveries . | . . . . . . . Exploration | -11 -10 -10 -10 -8 -6 -6 ------------- Run | Yrd Mat Min Sub Scr Fac Low Turns Passed 7700 | 76 886 409 60 3458 2262 549 Spaces Moved 3689 | 42 418 150 25 1799 1058 197 Core 9 | 6 . . . 2 . 1 Treads 2419 | 36 418 150 25 1790 . . Legs 1261 | . . . . 7 1058 196 Wheels . | . . . . . . . Hover . | . . . . . . . Flight . | . . . . . . . Fastest Speed 50 | 50 160 240 240 160 176 113 Average Speed 192 | 150 205 240 240 187 187 196 Slowest Speed 850 | 160 240 240 240 850 270 700 Overloaded Moves . | . . . . . . . Propulsion Burnouts . | . . . . . . . Robots Hopped . | . . . . . . . Potential Cave-ins . | . . . . . . . Cave-ins Triggered . | . . . . . . . Exploration Rate (%) 30 | 4 44 40 3 89 15 20 Regions Visited 6 Branch Regions 4 Pre-discovered Areas 1 | . . 1 . . . . Known Exits Taken 2 | . . . . 1 1 . Unknown Exits Taken 4 | 1 1 1 1 . . . Scrap Searched 6 | . . . . 3 . 3 Spaces Dug 4 | . . . . . 4 . Terrain Destroyed 84 | . . . . 41 33 10 Melee . | . . . . . . . Projectile 34 | . . . . . 33 1 AOE 50 | . . . . 41 . 9 Terrain Rammed . | . . . . . . . Walls Destroyed . | . . . . . . . Machines Disabled . | . . . . . . . Actions | -11 -10 -10 -10 -8 -6 -6 --------- Run | Yrd Mat Min Sub Scr Fac Low Total 4078 | 52 434 178 25 1865 1231 293 Wait 77 | . . 10 . 2 44 21 Move 3683 | 41 417 149 24 1798 1057 197 Hop . | . . . . . . . Pick Up 54 | 4 6 3 . 19 19 3 Fast Attach 13 | 6 2 . . 1 2 2 Attach 38 | . 1 2 . 5 18 12 Detach 10 | . 1 1 . 3 3 2 Swap 10 | 1 . . 1 4 4 . Drop 19 | . . 1 . 13 5 . Fire 150 | . 7 11 . 20 77 35 Melee 8 | . . . . . . 8 Ram . | . . . . . . . Kick 15 | . . . . . 2 13 Crush 1 | . . 1 . . . . Escape Stasis . | . . . . . . . Rewire . | . . . . . . . Trap . | . . . . . . . Miscellaneous . | . . . . . . . Route ------- -11/Scrapyard -10/Materials (discovered 2 exits: [*Mat] / [*Min]) -10/Mines (discovered 2 exits: [*Mat] / [*Sub]) -10/Subcaves -8/Scraptown (discovered 2 exits: *Fac x2) -6/Factory -6/Lower Caves History --------- Turn | Location | Event 6 | -11/Scrapyard | Discovered new exit (range 15) 77 | -11/Scrapyard | Entered Materials 306 | -10/Materials | Build established: Mutant 339 | -10/Materials | Discovered new exit (range 4) 912 | -10/Materials | Discovered new exit (range 15) 963 | -10/Materials | Entered Mines 1067 | -10/Mines | Learned location of Storage (-8) 1129 | -10/Mines | Discovered new exit (range 7) 1276 | -10/Mines | Found a damaged Exp. Sensor Array with a note attached 1281 | -10/Mines | Found Prototype Device 1282 | -10/Mines | Identified Exp. Sensor Array 1357 | -10/Mines | Discovered new exit (range 5) 1372 | -10/Mines | Entered Subcaves 1373 | -10/Subcaves | Approached by a straggling Scientist 1419 | -10/Subcaves | Scientist uncovered a shortcut to Scraptown 1432 | -10/Subcaves | Entered Scraptown 1954 | -8/Scraptown | Visited UFD Registry 1980 | -8/Scraptown | Visited Cyclists 2911 | -8/Scraptown | Discovered new exit (range 7) 3149 | -8/Scraptown | Registered with UFD as "Novaspreader" 3245 | -8/Scraptown | Visited A0-MCA Data Center 3255 | -8/Scraptown | Given a C+ rating by A0-MCA 3261 | -8/Scraptown | Found A0-MCA's Component Scanner 3320 | -8/Scraptown | Visited Supply Room 3369 | -8/Scraptown | Visited Research Penetration Think Tank 3408 | -8/Scraptown | Visited Curators Association 3499 | -8/Scraptown | Visited Scrap Suit Storage 3517 | -8/Scraptown | Found Scrap Suit 3564 | -8/Scraptown | Visited DA-N13 Charitable Foundation 3648 | -8/Scraptown | Visited Abandonware Association 3746 | -8/Scraptown | Learned abandonware demo "SHUTEYE.EXE" 3746 | -8/Scraptown | Learned abandonware demo "MELTYB.EXE" 4042 | -8/Scraptown | Visited Infowarlord's Domain 4055 | -8/Scraptown | Found Exp. Signal Interpreter 4102 | -8/Scraptown | Visited Chapter 10 4166 | -8/Scraptown | Visited Science Guys 4320 | -8/Scraptown | Met Optimus 4320 | -8/Scraptown | Accepted into 0bPrime 4479 | -8/Scraptown | Civil war broke out across Scraptown 4548 | -8/Scraptown | Lost 4 allies 4555 | -8/Scraptown | Identified exit to Factory 4588 | -8/Scraptown | Optimus destroyed in the chaos of civil war 4673 | -8/Scraptown | Lost 4 allies 4797 | -8/Scraptown | Lost 5 allies 4804 | -8/Scraptown | Destroyed 8 combat bots 4890 | -8/Scraptown | Entered Factory 4890 | -6/Factory | Evolved 8 slots: Power x1, Propulsion x2, Utility x5 4956 | -6/Factory | Identified exit to DSF 5036 | -6/Factory | Build established: Scavenger-Mutant 6395 | -6/Factory | Lost 3 parts (1p2u) 6667 | -6/Factory | Build established: Mutant 7102 | -6/Factory | Discovered new exit (range 4) 7108 | -6/Factory | Identified exit to Lower Caves 7152 | -6/Factory | Entered Lower Caves 7205 | -6/Lower Caves | Core integrity fell below 50% 7235 | -6/Lower Caves | Core integrity fell below 20% 7259 | -6/Lower Caves | Lost 12 parts (2p4n1u5w) 7430 | -6/Lower Caves | Learned 12 Factory zone layouts 7435 | -6/Lower Caves | Found DCF Scrap (13 items) 7524 | -6/Lower Caves | Learned Factory terminal intel 7568 | -6/Lower Caves | Attracted the attention of an 0b10 outpost 7648 | -6/Lower Caves | System corruption reached 10% 7678 | -6/Lower Caves | Lost 6 parts (1p3u2w) 7701 | -6/Lower Caves | Destroyed by Y-64 Sentinel with KE Penetrator Last Messages --------------- 07635_ Penetrated by Slug. 07636_ Kicked B-48 Gladiator. 07637_ Kicked B-48 Gladiator out of the way. 07637_ Penetrated by Slug. 07637_ Critical hit (Destroy). 07637_ Hrd. Light Armor Plating destroyed. 07640_ Penetrated by Slug. 07643_ Broken Proton Cannon destroyed. 07645_ System corrupted: Arm. Leg rejected. 07646_ Penetrated by Slug. 07647_ A0-MCA's Component Scanner destroyed. 07647_ System corrupted by crushing effect (+3). 07647_ Knocked back. 07678_ Adv. Targeting Computer destroyed. 07678_ Adv. Terrain Scan Processor destroyed. 07678_ System corrupted by crushing effect (+2). 07678_ Knocked back. 07700_ System corrupted: Heat flow error (+198). 07701_ Penetrated by Slug. Map ----- +----------------------------------------------------+ | ????????## ##??## #??????????????? | | ?????????# ##### #??????????????? | | ?????????### ## #???????????????? | | ???????????## #???????????????? | | ????????????#### #???????????????? | | ???????????????# #####???????????????? | | ????###????????# ###???????????????????? | | ???## ##??###### #?????????????????????? | | #### #??# # ##????????????????????? | | #### "#????????????????????? | | " ##???????????????????? | | ???# ## ##??????????????????? | | ???# # # ## #??????????????????? | | ???## # ## #??????????????????? | | ????### ########## #??????????????????? | | ???#### #???????## ##??????????????????? | | ???# #???????# #####?????????????????? | | ???# ## #???##### ##### ##????????????????? | | ???# ## #??## #??# ##???????????????? | | #??# ## #?## ## ##?## #???????????????? | | ##?#[## =### ######## #???????????????? | | ###%## ## ##???## #???????????????? | | ## ## #### ##???## #???????????????? | | ##?## ###### ##??????????????? | | #?# ! = #??????????????? | | ### @]/ #??????????????? | | bbYbl! #??????????????? | | ### """""" """"""! #??????????????? | | ##?# ### """""" """""" #??????????????? | | ###??# #?# """""" """""" #??????????????? | | ?????# #?# """""" """""" #??????????????? | | ?????## ## ! #??????????????? | | ??????## ## """""" """""" = #??????????????? | | ???????##### """""" """""" #??????????????? | | ???????????# """""" """""" #??????????????? | | ???????????# """""" """""" #??????????????? | | ???????????# / #??????????????? | | ???????????# % #??????????????? | | ???????????# = #??????????????? | | ???????????#####################??????????????? | | ??????????????????????????????????????????????? | | ??????????????????????????????????????????????? | | ??????????????????????????????????????????????? | | ??????????????????????????????????????????????? | | ??????????????????????????????????????????????? | | ??????????????????????????????????????????????? | | ??????????????????????????????????????????????? | | ??????????????????????????????????????????????? | | ??????????????????????????????????????????????? | | ??????????????????????????????????????????????? | +----------------------------------------------------+ Best States ------------- Heat Dissipation 51 Energy Generation 29 Energy Capacity 500 Matter Stores 300 Matter Capacity 300 Sight Range 16 Robot Scan Range 20 Terrain Scan Density 210 Armor Coverage 150 Evasion (%) 40 Targeting Accuracy 8 Recoil Reduction 2 Offensive Hacking 21 Item Schematics ----------------- None Robot Schematics ------------------ None Fabricated ------------ Nothing Repaired ---------- Nothing Studied --------- Med. Treads | -6/Factory | Hacked Alien Tech Used ----------------- None Achievements -------------- Civilization 2243 Hydra I Spy Item+ Link The Feds Nice Directions, Buddy Uncivil War Use The Force Well Done Wiki Contributor Challenges ------------ None Game ------ Seed DirtyKineticDisplacer Manual? 0 Play Time 01:14:07 Cumulative 12.3 hours Start 2025.11.28 @ 13:12:32 End 2025.11.29 @ 09:12:31 Sessions 5 Manual Loads 0 Difficulty Rogue Special Mode None Game No. 39 Rogue 39 Adventurer 0 Explorer 0 Win Type - Total 0 Types 0/0/0/0/0/0/0/0/0/0 Lore% 13 Gallery% 14 Achievement% 11 Wizard Run 0 Options --------- Layout 1 ASCII 0 Keyboard 0 Movement Numpad Keybinds 0 Fullscreen 1 Font 32/SmallcapsGlow Map View 50x35 Zoom Use 0% Tactical HUD 1 Map Filters NONE Filters NONE Steam 1 RUN: d6ab73bc-e57e-45f6-8734-6454ed1d5d5c